bitfinex/quotes_BTCUSD_20241128
["timestamp","ask_amount","ask_price","bid_price","bid_amount"]
[1732782280558,0.00231779,95461.0,95459.0,0.104756]
[1732782280992,0.00231779,95461.0,95460.0,0.104755]
[1732782281206,0.00231779,95461.0,95459.0,0.104756]
[1732782281427,0.00231779,95461.0,95455.0,0.209522]
[1732782281645,0.00231779,95461.0,95460.0,0.104755]
[1732782282493,0.00531779,95461.0,95460.0,0.104755]
[1732782282699,0.003,95461.0,95460.0,0.183155]
[1732782282907,0.002,95461.0,95460.0,0.183155]
[1732782283113,0.02108867,95467.0,95466.0,0.104749]
[1732782284007,0.02108867,95467.0,95464.0,0.10475]
[1732782284200,0.02108867,95467.0,95459.0,0.256413]
[1732782284201,0.00231769,95466.0,95465.0,0.10475]
[1732782284413,0.00231769,95466.0,95459.0,0.0469]
[1732782284414,0.02108867,95467.0,95466.0,0.104749]
[1732782285056,0.00231769,95474.0,95473.0,0.104741]
[1732782285269,0.00317927,95476.0,95475.0,0.104739]
[1732782285498,0.0008618,95476.0,95475.0,0.104739]
[1732782285709,0.02153541,95476.0,95475.0,0.104739]
[1732782285915,0.02385286,95476.0,95475.0,0.104739]
[1732782286160,0.02153541,95476.0,95473.0,0.10474]
[1732782286383,0.00231748,95475.0,95471.0,0.209486]
[1732782286596,0.00231748,95475.0,95473.0,0.10474]
[1732782287031,0.00231748,95475.0,95474.0,0.10474]
[1732782288117,0.00231748,95475.0,95471.0,0.209486]
[1732782288320,0.00231748,95475.0,95473.0,0.001]
[1732782288741,0.00231748,95475.0,95470.0,0.104744]
[1732782288952,0.00231748,95475.0,95474.0,0.001]
[1732782289164,0.00317998,95475.0,95474.0,0.001]
[1732782289369,0.00317998,95475.0,95466.0,0.00026787]
[1732782289580,0.00317998,95475.0,95473.0,0.001]
[1732782289799,0.00317998,95475.0,95469.0,0.104745]
[1732782290032,0.00317998,95475.0,95466.0,0.00026787]
[1732782290254,0.00317998,95475.0,95474.0,0.001]
[1732782291416,0.00317998,95475.0,95471.0,0.104743]
[1732782291671,0.00317998,95475.0,95473.0,0.001]
[1732782291899,0.00317998,95475.0,95472.0,0.104742]
[1732782292128,0.00317998,95475.0,95470.0,0.104744]
[1732782292352,0.00317998,95475.0,95467.0,0.209496]
[1732782292353,0.00317998,95475.0,95474.0,0.001]
[1732782292574,0.00317998,95475.0,95471.0,0.104743]
[1732782292802,0.00317998,95475.0,95473.0,0.001]
[1732782293236,0.00317998,95475.0,95472.0,0.104742]
[1732782293449,0.00317998,95475.0,95474.0,0.001]
[1732782294764,0.00317998,95475.0,95471.0,0.104743]
[1732782294964,0.00317998,95475.0,95473.0,0.001]
[1732782295424,0.00317998,95475.0,95471.0,0.104743]
[1732782295631,0.00317998,95475.0,95474.0,0.001]
[1732782295854,0.00317998,95475.0,95470.0,0.104744]
[1732782296313,0.00317998,95475.0,95473.0,0.001]
[1732782296549,0.00317998,95475.0,95464.0,0.00026787]
[1732782296757,0.00317998,95475.0,95469.0,0.104745]
[1732782296971,0.00317998,95475.0,95465.0,0.20976787]
[1732782297189,0.00317998,95475.0,95467.0,0.104747]
[1732782297400,0.00317998,95475.0,95465.0,0.20976787]
[1732782297401,0.00317998,95475.0,95466.0,0.104749]
[1732782297613,0.00317998,95475.0,95468.0,0.209493]
[1732782298302,0.00317998,95475.0,95474.0,0.001]
[1732782298521,0.00317998,95475.0,95472.0,0.104741]
[1732782298733,0.00317998,95475.0,95469.0,0.209492]
[1732782298944,0.00317998,95475.0,95472.0,0.104742]
[1732782299179,0.00317998,95475.0,95470.0,0.209489]
[1732782299417,0.00317998,95475.0,95474.0,0.001]
[1732782299841,0.00317998,95475.0,95467.0,0.418992]
[1732782299842,0.00317998,95475.0,95467.0,0.209496]
[1732782300071,0.00317998,95475.0,95474.0,0.10474]
[1732782300534,0.0008625,95475.0,95474.0,0.10500787]
[1732782300757,0.0008625,95475.0,95474.0,0.15190787]
[1732782301887,0.0008625,95475.0,95474.0,0.15290787]
[1732782302123,0.0008625,95475.0,95474.0,0.15190787]
[1732782302330,0.0008618,95476.0,95474.0,0.15190787]
[1732782302331,0.0008618,95476.0,95475.0,0.10500687]
[1732782302548,0.0008618,95476.0,95474.0,0.22414521]
[1732782302549,0.0008618,95488.0,95487.0,0.15109387]
[1732782302764,0.0004,95489.0,95488.0,0.10499287]
[1732782303010,0.0004,95489.0,95488.0,0.63848514]
[1732782303225,0.0004,95489.0,95488.0,0.24559941]
[1732782303447,0.0004,95489.0,95488.0,0.45090706]
[1732782303692,0.0004,95489.0,95488.0,0.24555119]
[1732782303919,0.0004,95489.0,95488.0,0.10499287]
[1732782304346,0.0004,95489.0,95488.0,0.62895499]
[1732782304560,0.0004,95489.0,95488.0,0.28303808]
[1732782304769,0.0004,95489.0,95488.0,0.28503808]
[1732782304982,0.0004,95489.0,95488.0,0.42560445]
[1732782305872,0.0014,95489.0,95488.0,0.77733653]
[1732782306083,0.0014,95489.0,95488.0,0.29103808]
[1732782306571,0.0014,95489.0,95488.0,0.38468097]
[1732782307201,0.0014,95489.0,95488.0,0.87102994]
[1732782307629,0.0014,95489.0,95488.0,0.63668359]
[1732782307852,0.0014,95489.0,95488.0,0.6486794]
[1732782308296,0.0004,95489.0,95488.0,0.6426794]
[1732782308566,0.0004,95489.0,95488.0,0.6486794]
[1732782308567,0.0014,95489.0,95488.0,0.6486794]
[1732782308813,0.0014,95489.0,95488.0,0.6426794]
[1732782309201,0.0024,95489.0,95488.0,0.6516794]
[1732782309685,0.0024,95489.0,95488.0,0.83683349]
[1732782310134,0.0024,95489.0,95488.0,0.83883349]
[1732782310555,0.0024,95489.0,95488.0,0.8366967]
[1732782310733,0.0024,95489.0,95488.0,0.64951526]
[1732782310939,0.0034,95489.0,95488.0,0.65751526]
[1732782311365,0.0034,95489.0,95488.0,0.68051526]
[1732782312497,0.0034,95489.0,95488.0,0.73021526]
[1732782312716,6.0009945,95501.0,95500.0,0.104712]
[1732782312933,6.0009945,95501.0,95500.0,0.20755721]
[1732782313136,6.0,95501.0,95500.0,0.20755721]
[1732782314091,6.0,95501.0,95500.0,0.21282508]
[1732782314568,6.0,95501.0,95500.0,0.22182508]
[1732782315249,6.0,95501.0,95500.0,0.21282508]
[1732782315728,6.0,95501.0,95500.0,0.22182508]
[1732782316866,6.0,95501.0,95500.0,0.41652508]
[1732782317069,6.0,95501.0,95500.0,0.76690953]
[1732782317296,6.0,95501.0,95500.0,0.95402345]
[1732782317507,6.0,95501.0,95500.0,0.76690953]
[1732782317718,6.0,95501.0,95500.0,0.95402345]
[1732782318178,6.0,95501.0,95500.0,0.76690953]
[1732782318386,6.0,95501.0,95500.0,0.95402345]
[1732782318643,6.0,95501.0,95500.0,0.76690953]
[1732782319065,6.0,95501.0,95500.0,1.02952345]
[1732782319704,6.0,95501.0,95500.0,1.02932729]
[1732782320352,6.0,95501.0,95500.0,0.82827257]
[1732782320557,6.0,95501.0,95500.0,1.02030045]
[1732782320814,6.0,95501.0,95500.0,1.02930045]
[1732782321045,6.0,95501.0,95500.0,0.84227257]
[1732782321271,6.0,95501.0,95500.0,0.49702508]
[1732782321487,6.0,95501.0,95500.0,0.42152508]
[1732782321694,6.0,95501.0,95500.0,0.51504046]
[1732782322183,6.0,95501.0,95500.0,0.52693166]
[1732782322628,5.47629188,95501.0,95500.0,0.43341628]
[1732782325520,5.47629188,95501.0,95500.0,0.38371628]
[1732782326826,5.47715368,95501.0,95500.0,0.38371628]
[1732782327046,5.47715368,95501.0,95500.0,0.28087107]
[1732782328373,5.47715368,95501.0,95500.0,0.13087107]
[1732782328672,5.47715368,95501.0,95500.0,0.02615907]
[1732782328906,5.60595368,95501.0,95500.0,0.014]
[1732782330224,5.52054058,95501.0,95496.0,0.00026787]
[1732782330434,0.08231688,95500.0,95496.0,0.00026787]
[1732782330665,0.104715,95497.0,95496.0,0.00026787]
[1732782330870,0.104715,95497.0,95476.0,0.209474]
[1732782330871,0.104724,95489.0,95482.0,0.00026787]
[1732782331077,0.0823172,95489.0,95482.0,0.01216689]
[1732782331315,0.0823172,95489.0,95482.0,0.11689789]
[1732782331534,0.1870412,95489.0,95482.0,0.01216689]
[1732782331752,0.0823172,95489.0,95482.0,0.01216689]
[1732782331973,0.0823172,95489.0,95482.0,0.00026787]
[1732782333103,0.0823172,95489.0,95483.0,0.104729]
[1732782333321,0.0833172,95489.0,95488.0,0.0117236]
[1732782334645,0.1880412,95489.0,95488.0,0.0117236]
[1732782335534,0.0833172,95489.0,95488.0,0.0117236]
[1732782335758,0.1880412,95489.0,95488.0,0.0117236]
[1732782336849,0.0833172,95489.0,95488.0,0.0117236]
[1732782337748,0.081,95489.0,95488.0,0.0117236]
[1732782337953,0.08331728,95489.0,95488.0,0.0117236]
[1732782339944,0.081,95489.0,95488.0,0.1164486]
[1732782350437,0.081,95489.0,95488.0,0.0117236]
[1732782350696,0.235624,95489.0,95488.0,0.0117236]
[1732782353235,0.234624,95489.0,95488.0,0.0047236]
[1732782353672,0.234624,95489.0,95488.0,0.0097236]
[1732782354111,0.234624,95489.0,95488.0,0.0067236]
[1732782354336,0.234624,95489.0,95488.0,0.0077236]
[1732782357378,0.1299,95489.0,95488.0,0.0077236]
[1732782358059,0.234624,95489.0,95488.0,0.0077236]
[1732782358264,0.1299,95489.0,95488.0,0.0077236]
[1732782358678,0.23694129,95489.0,95488.0,0.01556446]
[1732782358858,0.234624,95489.0,95488.0,0.01556446]
[1732782359662,0.1299,95489.0,95488.0,0.01556446]
[1732782359889,0.1299,95489.0,95488.0,0.0077236]
[1732782359890,0.13221724,95489.0,95488.0,0.0077236]
[1732782360887,0.23694124,95489.0,95488.0,0.0077236]
[1732782361092,0.234624,95489.0,95488.0,0.0077236]
[1732782362153,0.1299,95489.0,95488.0,0.0077236]
[1732782362368,0.13221724,95489.0,95488.0,0.0077236]
[1732782362577,0.23694124,95489.0,95488.0,0.0077236]
[1732782362789,0.234624,95489.0,95488.0,0.0077236]
[1732782362996,0.1299,95489.0,95488.0,0.0077236]
[1732782363200,0.13221724,95489.0,95488.0,0.0077236]
[1732782365203,0.23694124,95489.0,95488.0,0.0077236]
[1732782365414,0.234624,95489.0,95488.0,0.0077236]
[1732782370325,0.33746921,95489.0,95488.0,0.0077236]
[1732782370996,0.37010342,95489.0,95488.0,0.0077236]
[1732782371206,0.33746921,95489.0,95488.0,0.0077236]
[1732782371415,0.33746921,95489.0,95488.0,0.0067236]
[1732782371628,0.34146921,95489.0,95488.0,0.0067236]
[1732782371843,0.34146921,95489.0,95488.0,0.0017236]
[1732782372288,0.34646921,95489.0,95488.0,0.0017236]
[1732782377790,0.243624,95489.0,95488.0,0.0017236]
[1732782378462,0.009,95489.0,95488.0,0.1064486]
[1732782379148,0.009,95489.0,95488.0,0.10671647]
[1732782379366,0.004,95489.0,95488.0,0.10671647]
[1732782379850,0.004,95489.0,95488.0,0.10971647]
[1732782380052,0.02113569,95495.0,95488.0,0.00499147]
[1732782380256,0.00231701,95494.0,95489.0,0.104723]
[1732782380470,0.02113569,95495.0,95489.0,0.104723]
[1732782380691,0.0234527,95495.0,95488.0,0.09913708]
[1732782380901,0.00231701,95494.0,95488.0,0.09913708]
[1732782381111,0.00231701,95494.0,95488.0,0.00599147]
[1732782381575,0.00231701,95494.0,95488.0,0.00499147]
[1732782382011,0.00231701,95494.0,95488.0,0.00199147]
[1732782383355,0.00231701,95494.0,95488.0,0.00299147]
[1732782384005,0.00331701,95494.0,95488.0,0.00299147]
[1732782386674,0.001,95494.0,95490.0,0.19885502]
[1732782386876,0.001,95494.0,95490.0,0.09413302]
[1732782387084,0.001,95494.0,95491.0,0.09413302]
[1732782387525,0.001,95494.0,95493.0,0.10498687]
[1732782387733,0.0023167,95500.0,95493.0,0.14119953]
[1732782387940,0.0023167,95500.0,95494.0,0.09411522]
[1732782388147,0.0023167,95500.0,95493.0,0.09411522]
[1732782388382,0.0023167,95500.0,95491.0,0.09438309]
[1732782388653,0.1305,95499.0,95493.0,0.09411522]
[1732782388861,0.00231693,95498.0,95490.0,0.001]
[1732782389282,0.00231693,95498.0,95491.0,0.00026787]
[1732782389930,0.001,95494.0,95491.0,0.00026787]
[1732782390612,0.00231693,95498.0,95491.0,0.00026787]
[1732782390849,0.00431693,95498.0,95491.0,0.00026787]
[1732782391258,0.00331693,95498.0,95491.0,0.00026787]
[1732782391470,0.0824,95499.0,95491.0,0.00026787]
[1732782391896,0.00331693,95498.0,95491.0,0.00026787]
[1732782392121,0.001,95494.0,95491.0,0.00026787]
[1732782393002,0.001,95494.0,95491.0,0.09438058]
[1732782393221,0.001,95494.0,95493.0,0.104719]
[1732782393430,0.0844,95499.0,95491.0,0.09438058]
[1732782393648,0.0844,95499.0,95492.0,0.09411271]
[1732782393649,0.0864,95499.0,95492.0,0.09411271]
[1732782393879,0.0864,95499.0,95492.0,0.10472]
[1732782394087,0.0844,95499.0,95492.0,0.09411271]
[1732782394297,5.59269478,95501.0,95491.0,0.19910158]
[1732782394507,0.001,95494.0,95491.0,0.20010158]
[1732782394717,0.001,95494.0,95491.0,0.09438058]
[1732782394954,0.00231693,95500.0,95491.0,0.09438058]
[1732782395176,0.002,95499.0,95491.0,0.09438058]
[1732782395405,0.00631693,95499.0,95491.0,0.09438058]
[1732782395607,0.00631693,95499.0,95491.0,0.00026787]
[1732782395819,0.00631693,95499.0,95491.0,0.00126787]
[1732782396037,0.00231693,95498.0,95491.0,0.001]
[1732782396271,0.00231693,95498.0,95491.0,0.00126787]
[1732782396688,0.00231693,95498.0,95491.0,0.01362762]
[1732782396893,0.001,95494.0,95491.0,0.00126787]
[1732782397534,0.00231693,95498.0,95491.0,0.00026787]
[1732782397787,0.00431693,95498.0,95491.0,0.00026787]
[1732782397994,0.00531693,95498.0,95491.0,0.00026787]
[1732782398210,0.00231693,95498.0,95491.0,0.00026787]
[1732782398417,0.00231693,95498.0,95491.0,0.00126787]
[1732782398624,0.001,95494.0,95491.0,0.00126787]
[1732782398894,0.001,95494.0,95491.0,0.00026787]
[1732782399978,0.0776,95493.0,95491.0,0.00026787]
[1732782400821,0.0776,95493.0,95491.0,0.00126787]
[1732782401506,0.0776,95493.0,95491.0,0.00226787]
[1732782402368,0.10703692,95492.0,95491.0,0.002]
[1732782402575,0.23393692,95492.0,95491.0,0.002]
[1732782402831,0.23162,95492.0,95491.0,0.002]
[1732782403697,0.104724,95489.0,95488.0,0.0017236]
[1732782403916,0.10704127,95489.0,95488.0,0.0017236]
[1732782405193,0.10904127,95489.0,95488.0,0.0017236]
[1732782405664,0.10704127,95489.0,95488.0,0.0017236]
[1732782406560,0.10904127,95489.0,95488.0,0.0017236]
[1732782407242,0.11004127,95489.0,95488.0,0.0017236]
[1732782408334,0.00531727,95489.0,95488.0,0.0017236]
[1732782408557,0.11004127,95489.0,95488.0,0.0017236]
[1732782409231,0.00531727,95489.0,95488.0,0.0017236]
[1732782409460,0.11004127,95489.0,95488.0,0.0017236]
[1732782413878,0.00531727,95489.0,95488.0,0.0017236]
[1732782414098,0.11004127,95489.0,95488.0,0.0017236]
[1732782414753,0.00531727,95489.0,95488.0,0.0017236]
[1732782414970,0.11004127,95489.0,95488.0,0.0017236]
[1732782415182,0.00531727,95489.0,95488.0,0.0017236]
[1732782415831,0.18794127,95489.0,95488.0,0.0017236]
[1732782416056,0.08321727,95489.0,95488.0,0.0017236]
[1732782416271,0.0809,95489.0,95488.0,0.0017236]
[1732782418376,0.08321724,95489.0,95488.0,0.0017236]
[1732782418849,0.08313136,95489.0,95488.0,0.0017236]
[1732782419093,0.18785536,95489.0,95488.0,0.0017236]
[1732782419336,0.08313136,95489.0,95488.0,0.0017236]
[1732782420072,0.08081412,95489.0,95488.0,0.0017236]
[1732782420792,0.08313136,95489.0,95488.0,0.0017236]
[1732782421304,0.18785536,95489.0,95488.0,0.0017236]
[1732782431459,0.18871766,95489.0,95488.0,0.0017236]
[1732782435994,0.18871766,95489.0,95488.0,0.01429476]
[1732782439423,0.18640042,95489.0,95488.0,0.01429476]
[1732782447337,0.28924563,95489.0,95488.0,0.01429476]
[1732782447553,0.37814032,95489.0,95488.0,0.01429476]
[1732782447825,0.33774563,95489.0,95488.0,0.01429476]
[1732782448053,0.08167642,95489.0,95488.0,0.01429476]
[1732782448267,0.00377642,95489.0,95488.0,0.01429476]
[1732782448715,0.00377642,95489.0,95488.0,0.11887263]
[1732782449423,0.00377642,95489.0,95488.0,0.10630147]
[1732782450091,0.00377642,95489.0,95488.0,0.15500147]
[1732782450588,0.0008623,95489.0,95488.0,0.25784668]
[1732782450818,0.0008623,95489.0,95488.0,0.25984668]
[1732782451041,0.0008623,95489.0,95488.0,0.25784668]
[1732782451490,0.0018623,95489.0,95488.0,0.26484668]
[1732782451697,0.0018623,95489.0,95488.0,0.26784668]
[1732782451908,0.0008623,95489.0,95488.0,0.26084668]
[1732782452118,0.0018623,95489.0,95488.0,0.26584668]
[1732782452328,0.0008623,95489.0,95488.0,0.25784668]
[1732782452547,0.0008623,95489.0,95488.0,0.26084668]
[1732782453657,0.0018623,95489.0,95488.0,0.26684668]
[1732782454078,0.0008623,95489.0,95488.0,0.28384668]
[1732782454289,0.0008623,95489.0,95488.0,0.36114668]
[1732782454513,0.0008623,95489.0,95488.0,0.84446185]
[1732782454940,0.0018623,95489.0,95488.0,0.85746185]
[1732782455152,0.0018623,95489.0,95488.0,0.38310824]
[1732782455419,0.0008623,95489.0,95488.0,0.37410824]
[1732782455630,0.0018623,95489.0,95488.0,0.86542341]
[1732782455859,0.0018623,95489.0,95488.0,0.37910824]
[1732782456498,0.0018623,95489.0,95488.0,0.86542341]
[1732782456749,0.0018623,95489.0,95488.0,0.37910824]
[1732782456967,0.0008623,95489.0,95488.0,0.52010824]
[1732782457196,0.0018623,95489.0,95488.0,0.52910824]
[1732782457624,0.0008623,95489.0,95488.0,0.52410824]
[1732782457834,0.0018623,95489.0,95488.0,1.01942341]
[1732782458697,0.0018623,95489.0,95488.0,1.01542341]
[1732782458918,0.0018623,95489.0,95488.0,0.53710824]
[1732782460223,0.0018623,95489.0,95488.0,0.81896479]
[1732782460441,0.0018623,95489.0,95488.0,0.53710824]
[1732782460703,0.0018623,95489.0,95488.0,0.38810824]
[1732782461575,0.0008623,95489.0,95488.0,0.37110824]
[1732782461793,0.0008623,95489.0,95488.0,0.37610824]
[1732782462038,0.0008623,95489.0,95488.0,0.38510824]
[1732782462039,0.0018623,95489.0,95488.0,0.38510824]
[1732782462485,0.0018623,95489.0,95488.0,0.38010824]
[1732782463163,0.0018623,95489.0,95488.0,0.56798574]
[1732782463402,0.0018623,95489.0,95488.0,0.38010824]
[1732782463642,0.0018623,95489.0,95488.0,0.40310824]
[1732782463856,0.0018623,95489.0,95488.0,0.44880824]
[1732782464068,0.0018623,95489.0,95488.0,0.52950824]
[1732782464278,0.0018623,95489.0,95488.0,0.53450824]
[1732782464488,0.0019023,95489.0,95488.0,0.53450824]
[1732782466260,0.0019023,95489.0,95488.0,0.82636479]
[1732782466692,0.0019023,95489.0,95488.0,1.02981359]
[1732782467121,0.0019023,95489.0,95488.0,0.54450824]
[1732782467591,0.0019023,95489.0,95488.0,0.53950824]
[1732782467843,0.0009023,95489.0,95488.0,0.54550824]
[1732782468073,0.0009023,95489.0,95488.0,0.55450824]
[1732782468295,0.0019023,95489.0,95488.0,0.54950824]
[1732782468744,0.0019023,95489.0,95488.0,0.55750824]
[1732782468951,0.0009023,95489.0,95488.0,0.54850824]
[1732782469166,0.0009023,95489.0,95488.0,0.54050824]
[1732782469373,0.0009023,95489.0,95488.0,0.83007591]
[1732782469808,0.0009023,95489.0,95488.0,1.31538126]
[1732782470026,0.0009023,95489.0,95488.0,1.03381359]
[1732782470239,0.0009023,95489.0,95488.0,0.83907518]
[1732782470661,0.0009023,95489.0,95488.0,0.83107518]
[1732782470897,0.0009023,95489.0,95488.0,1.03481359]
[1732782471102,0.0009023,95489.0,95488.0,0.55650824]
[1732782471557,0.0009023,95489.0,95488.0,0.54950824]
[1732782471782,5.47174058,95501.0,95500.0,0.00026787]
[1732782471997,5.47174058,95501.0,95500.0,0.45992508]
[1732782473347,5.47174058,95501.0,95500.0,0.6475563]
[1732782473555,5.47174058,95501.0,95500.0,0.5684563]
[1732782473774,5.47174058,95501.0,95500.0,0.38082508]
[1732782473987,5.47174058,95501.0,95500.0,0.38982508]
[1732782474192,5.47174058,95501.0,95500.0,0.58144045]
[1732782475935,5.47178058,95501.0,95500.0,0.58144045]
[1732782477793,5.47178058,95501.0,95500.0,0.58141425]
[1732782479591,5.47178058,95501.0,95500.0,0.59358992]
[1732782480467,5.47178058,95501.0,95500.0,0.60926215]
[1732782481581,5.47178058,95501.0,95500.0,0.61710051]
[1732782482239,5.47178058,95501.0,95500.0,0.42951134]
[1732782482701,5.47178058,95501.0,95500.0,0.61711986]
[1732782483160,5.47178058,95501.0,95500.0,0.61673304]
[1732782483400,5.47178058,95501.0,95500.0,0.5121527]
[1732782483857,5.47178058,95501.0,95500.0,0.59335411]
[1732782484307,5.47178058,95501.0,95500.0,0.40573288]
[1732782484763,5.47178058,95501.0,95500.0,0.46565674]
[1732782485019,5.47178058,95501.0,95500.0,0.27802088]
[1732782485233,5.60338058,95501.0,95500.0,0.02517567]
[1732782487033,5.60338058,95501.0,95500.0,0.02117567]
[1732782487242,5.60338058,95501.0,95500.0,0.02317567]
[1732782487459,5.60338058,95501.0,95500.0,0.01417567]
[1732782487683,5.60338058,95501.0,95500.0,0.02017567]
[1732782487921,5.60338058,95501.0,95500.0,0.01817567]
[1732782488141,0.0786,95500.0,95491.0,0.09383728]
[1732782488356,5.52148058,95501.0,95491.0,0.09383728]
[1732782488357,5.72065326,95501.0,95491.0,0.09383728]
[1732782488571,0.082,95499.0,95491.0,0.09383728]
[1732782488793,0.082,95498.0,95491.0,0.09383728]
[1732782489035,0.082,95498.0,95492.0,0.09383728]
[1732782489248,0.082,95498.0,95495.0,0.09383728]
[1732782489926,0.082,95498.0,95491.0,0.18767457]
[1732782489927,5.47178058,95501.0,95500.0,0.03]
[1732782490138,5.47178058,95501.0,95500.0,0.37141677]
[1732782490352,5.47178058,95501.0,95500.0,0.41836996]
[1732782490784,5.47178058,95501.0,95500.0,0.23055721]
[1732782491254,5.47178058,95501.0,95500.0,0.23755721]
[1732782491465,5.47178058,95501.0,95500.0,0.23055721]
[1732782491726,5.47178058,95501.0,95500.0,0.23955721]
[1732782492589,5.47178058,95501.0,95500.0,0.24255721]
[1732782492796,5.47178058,95501.0,95500.0,0.12884521]
[1732782493020,5.47178058,95501.0,95500.0,0.12584521]
[1732782493259,5.47178058,95501.0,95500.0,0.13484521]
[1732782493483,5.47178058,95501.0,95500.0,0.23455721]
[1732782493708,5.47178058,95501.0,95500.0,0.24355721]
[1732782493940,5.47178058,95501.0,95500.0,0.23955721]
[1732782494384,5.47178058,95501.0,95500.0,0.24355721]
[1732782494848,5.47178058,95501.0,95500.0,0.52564926]
[1732782495970,5.47178058,95501.0,95500.0,0.42093726]
[1732782496413,5.47178058,95501.0,95500.0,0.52564926]
[1732782496627,5.47178058,95501.0,95500.0,0.43316537]
[1732782497284,5.47178058,95501.0,95500.0,0.15107332]
[1732782498162,5.55268058,95501.0,95500.0,0.43327592]
[1732782498370,5.55268058,95501.0,95500.0,0.15107332]
[1732782499257,5.55268058,95501.0,95500.0,0.63736257]
[1732782499528,5.55268058,95501.0,95500.0,0.15107332]
[1732782503414,5.55268058,95501.0,95500.0,0.15279772]
[1732782507192,5.55268058,95501.0,95500.0,0.41213587]
[1732782507406,5.55268058,95501.0,95500.0,0.12979772]
[1732782509822,5.55268058,95501.0,95500.0,0.02695251]
[1732782510013,5.70279058,95501.0,95500.0,0.02695251]
[1732782511833,5.59808058,95501.0,95500.0,0.02695251]
[1732782514655,5.47178058,95501.0,95500.0,0.26750972]
[1732782514889,5.47178058,95501.0,95500.0,0.41750972]
[1732782515126,5.43904794,95501.0,95500.0,0.41750972]
[1732782515858,5.43904794,95501.0,95500.0,0.90405088]
[1732782516092,5.43904794,95501.0,95500.0,0.41750972]
[1732782517281,5.43904794,95501.0,95500.0,0.41350972]
[1732782517463,5.43904794,95501.0,95500.0,0.40450972]
[1732782517710,5.43904794,95501.0,95500.0,0.40850972]
[1732782517930,5.43904794,95501.0,95500.0,0.41750972]
[1732782518406,5.43904794,95501.0,95500.0,0.41350972]
[1732782518633,5.43904794,95501.0,95500.0,0.41750972]
[1732782519805,5.43904794,95501.0,95500.0,0.41850972]
[1732782520043,5.43904794,95501.0,95500.0,0.42350972]
[1732782520284,5.43904794,95501.0,95500.0,0.42850972]
[1732782520500,5.43904794,95501.0,95500.0,0.41950972]
[1732782520711,5.43904794,95501.0,95500.0,0.42350972]
[1732782520926,5.43904794,95501.0,95500.0,0.42150972]
[1732782521428,5.43904794,95501.0,95500.0,0.49910972]
[1732782521682,5.43904794,95501.0,95500.0,0.50710972]
[1732782522174,4.91544824,95501.0,95500.0,0.50710972]
[1732782522483,4.89654579,95501.0,95500.0,0.55440972]
[1732782522941,4.89054579,95501.0,95500.0,0.55440972]
[1732782523647,4.89054579,95501.0,95500.0,0.56340972]
[1732782523873,4.35614579,95501.0,95500.0,0.54640972]
[1732782524109,4.35614579,95501.0,95500.0,0.55540972]
[1732782524367,4.35614579,95501.0,95500.0,0.56440972]
[1732782524831,4.35614579,95501.0,95500.0,0.55540972]
[1732782525080,4.35614579,95501.0,95500.0,0.56440972]
[1732782527223,4.35614579,95501.0,95500.0,0.44150972]
[1732782528993,3.16550059,95501.0,95500.0,0.56750972]
[1732782529222,2.91702322,95501.0,95500.0,0.56750972]
[1732782529896,2.91102322,95501.0,95500.0,0.54950972]
[1732782530193,2.91102322,95501.0,95500.0,0.55350972]
[1732782530841,2.91102322,95501.0,95500.0,0.55450972]
[1732782531060,2.86186323,95501.0,95500.0,0.55450972]
[1732782531268,2.84458323,95501.0,95500.0,0.54050972]
[1732782531494,2.84458323,95501.0,95500.0,0.54150972]
[1732782532184,2.84458323,95501.0,95500.0,0.54250972]
[1732782532641,2.84458323,95501.0,95500.0,0.54150972]
[1732782533535,2.84458323,95501.0,95500.0,0.54050972]
[1732782533748,2.84458323,95501.0,95500.0,0.54150972]
[1732782533992,2.84458323,95501.0,95500.0,0.99401643]
[1732782533993,2.71668323,95501.0,95500.0,0.99401643]
[1732782534214,2.71668323,95501.0,95500.0,0.54150972]
[1732782535287,2.7034341,95501.0,95500.0,0.54150972]
[1732782536550,2.65348411,95501.0,95500.0,0.54150972]
[1732782537885,2.64748411,95501.0,95500.0,0.54150972]
[1732782538102,2.64748411,95501.0,95500.0,0.46330972]
[1732782538314,2.64748411,95501.0,95500.0,0.41550972]
[1732782538956,2.62529701,95501.0,95500.0,0.41550972]
[1732782539374,2.60243701,95501.0,95500.0,0.41550972]
[1732782540702,2.59937915,95501.0,95500.0,0.41550972]
[1732782544050,2.55688266,95501.0,95500.0,0.88497074]
[1732782544314,2.53671616,95501.0,95500.0,0.8927999]
[1732782544547,2.50159416,95501.0,95500.0,0.88497074]
[1732782544814,2.50159416,95501.0,95500.0,0.88631137]
[1732782545305,2.50159416,95501.0,95500.0,0.41550972]
[1732782547640,2.48981442,95501.0,95500.0,0.88631137]
[1732782548148,2.48890142,95501.0,95500.0,0.88631137]
[1732782548371,2.45617825,95501.0,95500.0,0.88631137]
[1732782548646,2.45617825,95501.0,95500.0,0.41550972]
[1732782552301,2.45617825,95501.0,95500.0,0.40550972]
[1732782552521,2.45617825,95501.0,95500.0,0.41550972]
[1732782552769,2.45017825,95501.0,95500.0,0.41550972]
[1732782553925,2.45021921,95501.0,95500.0,0.41550972]
[1732782554614,2.45021921,95501.0,95500.0,0.83112847]
[1732782555571,2.45021921,95501.0,95500.0,0.88631137]
[1732782556024,2.45021921,95501.0,95500.0,0.40550972]
[1732782556274,2.45021921,95501.0,95500.0,0.41550972]
[1732782556488,2.45021921,95501.0,95500.0,0.88631137]
[1732782556927,2.45021921,95501.0,95500.0,0.41550972]
[1732782557173,2.45021921,95501.0,95500.0,0.40550972]
[1732782557415,2.45021921,95501.0,95500.0,0.41550972]
[1732782557640,2.45021921,95501.0,95500.0,0.88631137]
[1732782557853,2.45021921,95501.0,95500.0,0.41550972]
[1732782563508,2.35858874,95501.0,95500.0,0.41550972]
[1732782563722,2.34338785,95501.0,95500.0,0.41550972]
[1732782564875,2.3424914,95501.0,95500.0,0.41550972]
[1732782565323,2.32997935,95501.0,95500.0,0.41550972]
[1732782567801,2.32397935,95501.0,95500.0,0.41550972]
[1732782568500,2.30670956,95501.0,95500.0,0.41550972]
[1732782569803,2.26281956,95501.0,95500.0,0.41550972]
[1732782570030,2.26281956,95501.0,95500.0,0.42806359]
[1732782571340,2.23707429,95501.0,95500.0,0.42806359]
[1732782571598,2.23707429,95501.0,95500.0,0.44375587]
[1732782572506,2.21122435,95501.0,95500.0,0.44375587]
[1732782572941,2.20850964,95501.0,95500.0,0.44375587]
[1732782573159,2.15659801,95501.0,95500.0,0.44375587]
[1732782573389,2.15025085,95501.0,95500.0,0.44375587]
[1732782573617,2.12048068,95501.0,95500.0,0.44375587]
[1732782574757,2.09535655,95501.0,95500.0,0.44375587]
[1732782575719,2.09535655,95501.0,95500.0,0.42806359]
[1732782577276,2.0675542,95501.0,95500.0,0.42806359]